fUSD/lending_fUSD_20260107
["ID","MTS","AMOUNT","RATE_DAILY","PERIOD"]
[400764278,1767821444460,-300.0,0.0001692,2]
[400764280,1767821444470,-300.0,0.00016929,2]
[400764282,1767821444479,-2107.0,0.00016935,2]
[400764284,1767821444490,-300.0,0.00016976,2]
[400764286,1767821444499,-300.0,0.00016977,2]
[400764288,1767821444508,-300.0,0.00016982,2]
[400764290,1767821444517,-500.0,0.00016986,2]
[400764292,1767821444527,-500.0,0.00016986,2]
[400764294,1767821444536,-222.83739244,0.00016996,2]
[400764296,1767821444545,-500.0,0.00017,5]
[400764298,1767821444555,-325.13368539,0.00017,5]
[400764300,1767821444564,-500.0,0.00017,2]
[400764302,1767821444573,-1000.0,0.00017,2]
[400764304,1767821444582,-500.001539,0.00017,2]
[400764306,1767821444591,-300.0,0.00017022,2]
[400764308,1767821444600,-300.0,0.00017022,2]
[400764309,1767821444609,-300.0,0.00017029,2]
[400764311,1767821444618,-300.0,0.00017029,2]
[400764314,1767821444628,-300.0,0.00017047,2]
[400764315,1767821444637,-332.09632756,0.00017052,2]
[400764317,1767821444647,-3364.0,0.00017052,2]
[400764319,1767821444658,-1000.0,0.00017059,2]
[400764321,1767821444667,-500.0,0.00017073,2]
[400764323,1767821444676,-300.0,0.0001708,2]
[400764325,1767821444690,-656.1290636,0.000171,2]
[400764328,1767821444701,-300.0,0.00017109,2]
[400764329,1767821444710,-300.0,0.00017113,2]
[400764331,1767821444719,-300.0,0.00017121,2]
[400764333,1767821444731,-8314.01418062,0.00017127,2]
[400764335,1767821444740,-1000.0,0.0001713,2]
[400764337,1767821444749,-300.0,0.0001713,2]
[400764339,1767821444760,-1000.0,0.00017134,2]
[400764341,1767821444770,-300.0,0.00017145,2]
[400764344,1767821444779,-1000.0,0.00017147,2]
[400764346,1767821444788,-1000.0,0.0001715,2]
[400764347,1767821444798,-467.24,0.00017157,2]
[400764349,1767821444807,-1476.84,0.00017164,2]
[400764351,1767821444816,-500.0,0.00017166,2]
[400764353,1767821444825,-300.0,0.00017167,2]
[400764355,1767821444834,-1000.0,0.00017169,2]
[400764357,1767821444844,-3364.0,0.00017169,2]
[400764359,1767821444853,-300.0,0.00017171,2]
[400764361,1767821444863,-300.0,0.00017177,2]
[400764364,1767821444873,-167.14,0.00017177,2]
[400764365,1767821444883,-1000.0,0.00017178,2]
[400764367,1767821444892,-171.3,0.00017178,2]
[400764369,1767821444901,-1000.0,0.00017179,2]
[400764371,1767821444912,-1000.0,0.00017191,2]
[400764373,1767821444921,-300.0,0.00017194,2]
[400764375,1767821444931,-500.0,0.000172,5]
[400764377,1767821444940,-300.0,0.000172,2]
[400764379,1767821444951,-300.0,0.00017204,2]
[400764381,1767821444960,-1000.0,0.00017213,2]
[400764383,1767821444969,-587.0,0.00017213,2]
[400764385,1767821444979,-587.0,0.00017213,2]
[400764387,1767821444987,-304.2281947,0.00017223,2]
[400764389,1767821444997,-1000.0,0.00017225,2]
[400764391,1767821445007,-300.0,0.00017225,2]
[400764393,1767821445016,-1000.0,0.00017237,2]
[400764395,1767821445025,-300.0,0.00017252,2]
[400764397,1767821445035,-300.0,0.00017263,2]
[400764399,1767821445044,-168.36414314,0.00017264,2]
[400764401,1767821445054,-2500.0,0.00017264,2]
[400764403,1767821445064,-2500.0,0.00017264,2]
[400764405,1767821445074,-2500.0,0.00017264,2]
[400764407,1767821445085,-1000.0,0.00017269,2]
[400764409,1767821445094,-300.0,0.00017273,2]
[400764411,1767821445103,-300.0,0.00017275,2]
[400764413,1767821445112,-1000.0,0.00017278,2]
[400764415,1767821445121,-1000.0,0.00017281,2]
[400764417,1767821445130,-300.0,0.00017289,2]
[400764418,1767821445139,-1269.0,0.00017291,2]
[400764420,1767821445148,-300.0,0.00017296,2]
[400764422,1767821445157,-1000.0,0.00017312,2]
[400764423,1767821445166,-1081.33997457,0.00017317,2]
[400764424,1767821445176,-1688.95959214,0.00017326,2]
[400764425,1767821445184,-1000.0,0.00017327,2]
[400764426,1767821445194,-300.0,0.0001733,2]
[400764427,1767821445203,-1269.0,0.00017336,2]
[400764428,1767821445212,-300.0,0.00017339,2]
[400764429,1767821445221,-300.0,0.00017345,2]
[400764430,1767821445230,-1269.0,0.00017349,2]
[400764431,1767821445239,-1000.0,0.00017352,2]
[400764432,1767821445248,-300.0,0.00017352,2]
[400764433,1767821445257,-150.0,0.00017354,2]
[400764434,1767821445266,-300.0,0.00017355,2]
[400764435,1767821445275,-1000.0,0.00017357,2]
[400764436,1767821445284,-300.0,0.00017358,2]
[400764437,1767821445292,-200.0,0.00017365,2]
[400764438,1767821445301,-2351.0,0.00017365,2]
[400764439,1767821445311,-300.0,0.00017371,2]
[400764440,1767821445320,-595.37131296,0.00017373,2]
[400764441,1767821445329,-1000.0,0.00017374,2]
[400764442,1767821445338,-827.5,0.00017374,2]
[400764444,1767821445347,-300.0,0.00017379,2]
[400764446,1767821445356,-300.0,0.00017382,2]
[400764448,1767821445365,-300.0,0.0001739,2]
[400764450,1767821445374,-1429.0,0.00017395,2]
[400764452,1767821445383,-500.0,0.000174,2]
[400764454,1767821445392,-198.23117805,0.00017403,2]
[400764456,1767821445401,-300.0,0.00017407,2]
[400764458,1767821445411,-1000.0,0.00017407,2]
[400764460,1767821445420,-300.0,0.00017409,2]
[400764462,1767821445430,-300.0,0.0001741,2]
[400764464,1767821445439,-300.0,0.00017429,2]
[400764466,1767821445448,-1476.84,0.00017438,2]
[400764468,1767821445457,-1000.0,0.00017445,2]
[400764470,1767821445466,-900.0,0.00017452,7]
[400764472,1767821445476,-3000.0,0.00017452,7]
[400764474,1767821445485,-300.0,0.00017458,2]
[400764476,1767821445494,-300.0,0.00017467,2]
[400764478,1767821445503,-300.0,0.00017472,2]
[400764480,1767821445512,-1000.0,0.00017477,2]
[400764482,1767821445521,-300.0,0.00017489,2]
[400764484,1767821445530,-1000.0,0.0001749,2]
[400764486,1767821445540,-341.3,0.00017496,2]
[400764488,1767821445549,-2000.0,0.000175,2]
[400764490,1767821445559,-1600.70015005,0.000175,2]
[400764492,1767821445569,-656.1290636,0.000175,2]
[400764494,1767821445578,-300.0,0.00017513,2]
[400764496,1767821445587,-8314.01418062,0.00017514,2]
[400764498,1767821445596,-1000.0,0.00017515,2]
[400764500,1767821445606,-300.0,0.00017523,2]
[400764524,1767821445829,-300.0,0.00017524,2]
[400764526,1767821445840,-240.82358149,0.00017534,2]
[400764528,1767821445849,-300.0,0.00017547,2]
[400764530,1767821445859,-150.0,0.00017551,2]
[400764532,1767821445867,-300.0,0.00017553,2]
[400764533,1767821445877,-300.0,0.00017557,2]
[400764535,1767821445886,-150.0,0.00017557,2]
[400764537,1767821445895,-300.0,0.00017564,2]
[400764539,1767821445904,-300.0,0.0001757,2]
[400764541,1767821445913,-1000.0,0.00017583,2]
[400764543,1767821445922,-150.0,0.00017585,2]
[400764544,1767821445932,-294.45612521,0.00017585,2]
[400764546,1767821445941,-1000.0,0.00017586,2]
[400764548,1767821445950,-1000.0,0.00017588,2]
[400764550,1767821445959,-207.66,0.00017593,2]
[400764552,1767821445968,-300.0,0.00017599,2]
[400764554,1767821445977,-500.0,0.000176,2]
[400764556,1767821445986,-150.0,0.000176,2]
[400764558,1767821445996,-1000.0,0.000176,2]
[400764560,1767821446005,-1000.0,0.00017601,2]
[400764562,1767821446014,-300.0,0.00017606,2]
[400764564,1767821446023,-1269.0,0.0001761,2]
[400764567,1767821446033,-300.0,0.00017613,2]
[400764569,1767821446042,-207.66,0.00017621,2]
[400764571,1767821446051,-300.0,0.00017626,2]
[400764573,1767821446060,-1000.0,0.00017633,2]
[400764575,1767821446069,-300.0,0.00017634,2]
[400764577,1767821446079,-161.58,0.00017635,2]
[400764579,1767821446088,-1405.0,0.00017635,2]
[400764581,1767821446098,-3467.0,0.00017635,2]
[400764583,1767821446107,-157.51038049,0.00017639,2]
[400764585,1767821446117,-300.0,0.00017641,2]
[400764587,1767821446126,-1000.0,0.00017643,2]
[400764589,1767821446135,-300.0,0.00017646,2]
[400764591,1767821446144,-1000.0,0.00017648,2]
[400764593,1767821446153,-207.66,0.00017649,2]
[400764595,1767821446162,-300.0,0.00017655,2]
[400764597,1767821446171,-150.0,0.00017659,2]
[400764598,1767821446180,-150.0,0.00017667,2]
[400764600,1767821446189,-1000.0,0.0001767,2]
[400764602,1767821446198,-300.0,0.0001767,2]
[400764604,1767821446208,-634.29540262,0.00017678,2]
[400764606,1767821446217,-150.0,0.00017684,2]
[400764608,1767821446226,-1269.0,0.00017694,2]
[400764610,1767821446235,-150.0,0.00017697,2]
[400764612,1767821446244,-150.0,0.00017698,2]
[400764614,1767821446253,-1000.0,0.00017702,2]
[400764616,1767821446262,-1000.0,0.00017706,2]
[400764618,1767821446271,-300.0,0.00017711,2]
[400764620,1767821446281,-1476.86654479,0.00017712,2]
[400764622,1767821446290,-1000.0,0.00017713,2]
[400764624,1767821446300,-300.0,0.00017714,2]
[400764626,1767821446310,-300.0,0.0001772,2]
[400764629,1767821446325,-1000.0,0.00017726,7]
[400764631,1767821446339,-1123.72081772,0.00017726,2]
[400764633,1767821446349,-300.0,0.00017728,2]
[400764635,1767821446359,-1000.0,0.00017729,2]
[400764637,1767821446368,-300.0,0.00017736,2]
[400764639,1767821446378,-1000.0,0.00017738,2]
[400764641,1767821446387,-450.04111853,0.00017739,2]
[400764643,1767821446398,-1000.0,0.0001774,2]
[400764646,1767821446408,-1000.0,0.00017741,2]
[400764648,1767821446418,-25000.0,0.00017742,3]
[400764650,1767821446428,-150.0,0.00017744,2]
[400764652,1767821446438,-151.0,0.00017747,2]
[400764654,1767821446447,-300.0,0.00017749,2]
[400764656,1767821446456,-25000.0,0.0001775,3]
[400764658,1767821446466,-300.0,0.00017752,2]
[400764660,1767821446476,-500.0,0.00017758,2]
[400764662,1767821446487,-25000.0,0.00017759,3]
[400764664,1767821446497,-301.44962762,0.00017763,2]
[400764666,1767821446506,-1000.0,0.00017764,2]
[400764668,1767821446516,-25000.0,0.00017768,3]
[400764670,1767821446526,-300.0,0.0001777,2]
[400764672,1767821446535,-150.0,0.00017771,2]
[400764674,1767821446545,-1000.0,0.00017772,2]
[400764676,1767821446554,-1000.0,0.00017774,2]
[400764678,1767821446564,-300.0,0.00017774,2]
[400764680,1767821446574,-25000.0,0.00017777,3]
[400764682,1767821446583,-300.0,0.00017783,2]
[400764684,1767821446593,-300.0,0.00017784,2]
[400764686,1767821446603,-1000.0,0.00017785,2]
[400764688,1767821446613,-25000.0,0.00017786,3]
[400764690,1767821446623,-634.2954026,0.00017789,2]
[400764692,1767821446632,-1000.0,0.00017794,2]
[400764694,1767821446643,-25000.0,0.00017794,3]
[400764696,1767821446652,-150.0,0.00017797,2]
[400764698,1767821446662,-1000.0,0.00017799,2]
[400764700,1767821446674,-500.0,0.000178,2]
[400764703,1767821446691,-1000.0,0.000178,2]
[400764705,1767821446701,-25000.0,0.00017803,3]
[400764707,1767821446712,-300.0,0.00017807,2]
[400764709,1767821446723,-1123.72081772,0.00017808,2]
[400764711,1767821446734,-25000.0,0.00017812,3]
[400764713,1767821446744,-300.0,0.00017812,2]
[400764715,1767821446755,-948.81970011,0.00017812,2]
[400764717,1767821446767,-3000.0,0.00017812,2]
[400764720,1767821446777,-300.0,0.00017817,2]
[400764722,1767821446787,-1854.99788,0.0001782,2]
[400764724,1767821446796,-1854.99789,0.0001782,2]
[400764726,1767821446807,-25000.0,0.00017821,3]
[400764728,1767821446816,-1000.0,0.00017821,2]
[400764730,1767821446826,-500.0,0.00017829,2]
[400764732,1767821446836,-25000.0,0.0001783,3]
[400764734,1767821446846,-261.94980575,0.0001783,2]
[400764736,1767821446856,-1854.99789,0.0001783,2]
[400764738,1767821446865,-161.23858714,0.00017831,2]
[400764740,1767821446875,-25000.0,0.00017838,3]
[400764742,1767821446885,-1000.0,0.00017843,2]
[400764744,1767821446895,-1000.0,0.00017846,2]
[400764746,1767821446906,-25000.0,0.00017847,3]
[400764748,1767821446916,-300.0,0.00017848,2]
[400764750,1767821446925,-300.0,0.00017848,2]
[400764753,1767821446935,-300.0,0.0001785,2]
[400764755,1767821446946,-150.0,0.00017853,2]
[400764757,1767821446956,-25000.0,0.00017856,3]
[400764759,1767821446966,-1000.0,0.00017857,2]
[400764761,1767821446976,-1854.99789,0.0001786,2]
[400764763,1767821446986,-170.012,0.00017863,2]
[400764765,1767821446995,-1123.72081772,0.00017863,2]
[400764767,1767821447005,-1817.579,0.00017864,2]
[400764769,1767821447015,-25000.0,0.00017865,3]
[400764771,1767821447025,-300.0,0.00017868,2]
[400764773,1767821447035,-25000.0,0.00017874,3]
[400764775,1767821447045,-300.0,0.00017875,2]
[400764778,1767821447059,-1000.0,0.00017877,2]
[400764780,1767821447069,-1854.99788,0.0001788,2]
[400764782,1767821447079,-25000.0,0.00017882,3]
[400764784,1767821447090,-300.0,0.00017885,2]
[400764787,1767821447100,-25000.0,0.00017891,3]
[400764789,1767821447110,-189.05,0.00017893,2]
[400764791,1767821447120,-1000.0,0.00017893,2]
[400764793,1767821447130,-1000.0,0.00017893,2]
[400764795,1767821447139,-1000.0,0.00017896,2]
[400764797,1767821447149,-500.0,0.00017899,2]
[400764799,1767821447160,-1000.0,0.00017899,2]
[400764801,1767821447171,-14633.43151327,0.000179,3]
[400764803,1767821447181,-1081.33997457,0.000179,2]
[400764805,1767821447192,-25000.0,0.000179,3]
[400764807,1767821447203,-10000.0,0.000179,2]
[400764810,1767821447212,-634.2954026,0.000179,2]
[400764812,1767821447222,-1000.0,0.000179,2]
[400764814,1767821447232,-8314.01418062,0.000179,2]
[400764816,1767821447243,-198.23117805,0.000179,2]
[400764818,1767821447252,-656.1290636,0.000179,2]
[400764820,1767821447263,-11707.23947328,0.000179,2]
[400764822,1767821447273,-1001.402075,0.000179,3]
[400764824,1767821447282,-8757.0,0.000179,2]
[400764826,1767821447294,-300.0,0.00017902,2]
[400764829,1767821447304,-1269.0,0.00017903,2]
[400764831,1767821447314,-1000.0,0.00017908,2]
[400764833,1767821447323,-1854.99789,0.0001791,2]
[400764835,1767821447334,-1000.0,0.00017915,2]
[400764837,1767821447343,-300.0,0.00017918,2]
[400764839,1767821447353,-300.0,0.00017919,2]
[400764841,1767821447363,-1000.0,0.00017919,2]
[400764843,1767821447373,-1000.0,0.0001792,2]
[400764845,1767821447382,-617.40005154,0.00017921,2]
[400764847,1767821447392,-300.0,0.00017929,2]
[400764849,1767821447403,-1000.0,0.00017937,2]
[400764852,1767821447417,-300.0,0.00017937,2]
[400764854,1767821447428,-1123.72081772,0.00017945,2]
[400764856,1767821447438,-210.0,0.00017946,2]
[400764858,1767821447448,-300.0,0.00017946,2]
[400764860,1767821447458,-300.0,0.00017952,2]
[400764862,1767821447468,-500.0,0.0001797,2]
[400764864,1767821447478,-1000.0,0.0001797,2]
[400764867,1767821447489,-500.0,0.0001797,2]
[400764869,1767821447499,-1000.0,0.0001797,2]
[400764871,1767821447509,-500.0,0.0001797,2]
[400764873,1767821447519,-1000.0,0.0001797,2]
[400764875,1767821447529,-983.46328676,0.0001797,2]
[400764877,1767821447541,-1000.0,0.0001797,2]
[400764879,1767821447551,-1000.0,0.0001797,2]
[400764881,1767821447562,-1000.0,0.0001797,2]
[400764883,1767821447572,-1109.90852601,0.0001797,2]
[400764886,1767821447582,-150.0,0.00017973,2]
[400764888,1767821447593,-150.0,0.00017973,2]
[400764890,1767821447602,-150.0,0.0001798,2]
[400764892,1767821447612,-150.0,0.0001798,2]
[400764894,1767821447624,-736.0,0.00017982,2]
[400764896,1767821447634,-500.0,0.00017982,2]
[400764898,1767821447645,-1000.0,0.00017983,2]
[400764900,1767821447655,-300.0,0.0001799,2]
[400764902,1767821447666,-1455.64956121,0.0001799,2]
[400764904,1767821447676,-1455.64956121,0.0001799,2]
[400764907,1767821447694,-12796.80711629,0.00017996,2]
[400764909,1767821447704,-35370.1827332,0.00017996,2]
[400764911,1767821447714,-151.0,0.00017997,2]
[400764913,1767821447726,-1000.0,0.00017998,2]
[400764915,1767821447736,-300.0,0.00017999,2]
[400764917,1767821447746,-500.0,0.00017999,2]
[400764919,1767821447757,-500.0,0.00017999,2]
[400764921,1767821447766,-500.0,0.00017999,2]
[400764923,1767821447776,-174.14927633,0.00017999,2]
[400764925,1767821447785,-300.0,0.00017999,2]
[400764927,1767821447795,-666.0,0.00017999,2]
[400764929,1767821447806,-300.0,0.00017999,2]
[400764931,1767821447816,-184.3400586,0.00017999,2]
[400764933,1767821447825,-500.0,0.00017999,2]
[400764935,1767821447835,-327.92652128,0.00017999,2]
[400764937,1767821447845,-666.0,0.00017999,2]
[400764939,1767821447855,-360.31108183,0.00017999,2]
[400764941,1767821447864,-300.0,0.00017999,2]
[400764943,1767821447874,-666.0,0.00017999,2]
[400764945,1767821447884,-400.58303632,0.00017999,2]
[400764947,1767821447894,-666.0,0.00017999,2]
[400764949,1767821447904,-713.95106546,0.00017999,2]
[400764952,1767821447914,-300.0,0.00017999,2]
[400764954,1767821447924,-395.10952792,0.00017999,2]
[400764956,1767821447933,-300.0,0.00017999,2]
[400764958,1767821447943,-5826.21400436,0.00017999,2]
[400764960,1767821447954,-255983.59484575,0.00018,2]
[400764962,1767821447963,-1246631.89645448,0.00018,2]
[400764964,1767821447973,-150.0,0.00018,2]
[400764966,1767821447984,-2602.07064445,0.00018,2]
[400764968,1767821447994,-150.0,0.00018,2]
[400764970,1767821448004,-3189.98736082,0.00018,2]
[400764972,1767821448013,-150.0,0.00018,2]
[400764974,1767821448023,-10493.64123385,0.00018,2]
[400764976,1767821448033,-150.0,0.00018,2]
[400764979,1767821448043,-1511.33867074,0.00018,2]
[400764981,1767821448053,-3179136.74287223,0.00018,2]
[400765040,1767821448747,-5275.90333579,0.00018,2]
[400765043,1767821448768,-369.32,0.00017893,2]
[400765050,1767821448823,-260.89,0.00017893,2]
[400765052,1767821448832,-71.97408524,0.00018,2]
[400765144,1767821449897,-2663.2606002,0.00018,2]
[400765195,1767821450842,-1.7e-07,0.00018,2]
[400765218,1767821451066,-344.5991048,0.000159,2]
[400765220,1767821451076,-11985.91516969,0.00018,2]
[400765246,1767821452444,165.54,7.387e-05,2]
[400765247,1767821452632,165.54,7.761e-05,2]
[400765248,1767821452859,165.54,8.134e-05,2]
[400765249,1767821453510,165.54,8.508e-05,2]
[400765250,1767821453886,165.54,8.882e-05,2]
[400765251,1767821454290,165.54,9.255e-05,2]
[400765252,1767821454562,165.54,9.629e-05,2]
[400765253,1767821454740,135.3771256,0.00010002,2]
[400765254,1767821454765,30.1628744,0.00010002,2]
[400765255,1767821454949,165.54,0.00010376,2]
[400765256,1767821455053,165.54,0.00010749,2]
[400765257,1767821455289,-344.5991048,0.000159,2]
[400765258,1767821455297,-1330.0,0.00017635,2]
[400765259,1767821455306,-88.09459387,0.00017963,2]
[400765260,1767821455317,-211.90540613,0.00017963,2]
[400765261,1767821455327,-219.84133485,0.00018,2]
[400765262,1767821455388,165.54,0.00011123,2]
[400765263,1767821455521,-153621.4276162,0.00018,2]
[400765264,1767821455532,-1201.25150158,0.00018,2]
[400765265,1767821455543,-3702.17204896,0.00018,2]
[400765266,1767821455554,-3162.82026835,0.00018,2]
[400765267,1767821455564,-611.68963455,0.00018,2]
[400765268,1767821455575,-433.02848958,0.00018,2]
[400765269,1767821455586,-274.18,0.00018,2]
[400765270,1767821455597,-1185.3213471,0.00018,2]
[400765271,1767821455607,-2101.6532668,0.00018,2]
[400765272,1767821455618,-265.92579989,0.00018,2]
[400765273,1767821455628,-250.75000002,0.00018,2]
[400765274,1767821455700,165.54,0.00011496,2]
[400765275,1767821455946,165.54,0.0001187,2]
[400765276,1767821456476,165.54,0.00012244,2]
[400765277,1767821456676,165.54,0.00012617,2]
[400765278,1767821456877,165.54,0.00012991,2]
[400765279,1767821457360,165.54,0.00013364,2]
[400765280,1767821463291,-165.54,0.00013738,2]
[400765281,1767821516083,-165.54,0.00014111,2]
[400765282,1767821516106,-168.91999983,0.00014198,2]
[400765283,1767821520145,-2.20525981,0.00014198,2]
[400765284,1767821536893,-189.37263991,0.00014298,2]
[400765285,1767821539484,-5.62736009,0.00014298,2]
[400765286,1767821539507,-195.0,0.00014325,2]
[400765287,1767821539530,-108.91570653,0.00014351,2]
[400765288,1767821541893,-191.08429347,0.00014351,2]
[400765289,1767821541920,-131.08083961,0.00014352,2]
[400765290,1767821607468,6246.04414991,0.00014299,2]
[400765291,1767821716877,209.08898448,0.00014299,2]
[400765292,1767821737005,291.15,0.00011717,2]
[400765293,1767821805782,926.86283538,0.00014299,2]
[400765294,1767821816485,1316.3245,0.00014297,2]
[400765295,1767821852233,234.25131594,0.00014295,2]
[400765296,1767821906995,776.28821429,0.00014299,2]
[400765297,1767821907018,6794.93520653,0.00014299,2]
[400765298,1767821993662,3205.07479347,0.00014299,2]
[400765299,1767821993688,8474.1339441,0.00014299,2]
[400765300,1767821997953,415.65047554,0.00014299,2]
[400765301,1767822093990,1110.22558036,0.00014109,2]
[400765302,1767822094017,1149.96441964,0.00014109,2]
[400765303,1767822094507,170.011,0.00014109,2]
[400765305,1767822137180,169.91915114,0.00014295,2]
[400765310,1767822161923,1000.0,0.00013948,2]
[400765311,1767822239995,202.82,0.00014295,2]
[400765312,1767822248167,505.209608,7.945e-05,2]
[400765313,1767822278874,363.69416608,0.00014299,2]
[400765333,1767822363111,150.0,0.00014224,2]
[400765334,1767822363437,500.0,0.00014224,2]
[400765335,1767822363561,500.0,0.00014279,2]
[400765336,1767822363643,150.0,0.00014224,2]
[400765337,1767822363705,500.0,0.00014224,2]
[400765338,1767822363870,150.0,0.00014279,2]
[400765339,1767822363910,500.0,0.00014279,2]
[400765340,1767822364587,-183.98181906,0.00014334,2]
[400765341,1767822366124,150.0,0.00014224,2]
[400765342,1767822366385,150.0,0.00014224,2]
[400765343,1767822367852,-294.50505212,0.00014334,2]
[400765344,1767822368068,500.0,0.00014224,2]
[400765345,1767822368199,500.0,0.00014279,2]
[400765346,1767822371822,-21.51312882,0.00014334,2]
[400765347,1767822371844,-150.0,0.00014334,2]
[400765348,1767822371867,-33.98181906,0.00014334,2]
[400765349,1767822380689,2688.39165514,0.00014299,2]
[400765350,1767822380712,7822.8962087,0.00014299,2]
[400765352,1767822417527,2177.1137913,0.00014297,2]
[400765353,1767822417553,6139.85616725,0.00014297,2]
[400765363,1767822443405,150.0,0.00014224,2]
[400765364,1767822443517,150.0,0.00014279,2]
[400765365,1767822443682,150.0,0.00014224,2]
[400765366,1767822443852,200.0,0.00014279,2]
[400765367,1767822444069,150.0,0.00014224,2]
[400765368,1767822444709,501.0,0.00014224,2]
[400765369,1767822444862,500.0,0.00014224,2]
[400765370,1767822444955,501.0,0.00014279,2]
[400765371,1767822445207,500.0,0.00014279,2]
[400765372,1767822474443,215.32489497,0.00029067,120]
[400765373,1767822487037,1034.38,0.00013575,2]
[400765379,1767822504019,23.77383275,0.00014125,2]
[400765380,1767822504043,126.22616725,0.00014125,2]
[400765381,1767822504809,427.0,0.00014125,2]
[400765382,1767822505288,427.0,0.0001418,2]
[400765383,1767822505465,427.0,0.00014235,2]
[400765384,1767822505699,427.0,0.00014289,2]
[400765385,1767822538017,999.0,0.00013509,3]
[400765386,1767822558826,318.23239532,0.00014299,2]
[400765387,1767822558958,7847.55143743,0.00014297,2]
[400765388,1767822558985,10000.01,0.00014297,2]
[400765389,1767822559015,10000.01,0.00014297,2]
[400765390,1767822559043,10000.01,0.00014297,2]
[400765391,1767822559070,10000.01,0.00014297,2]
[400765392,1767822559096,10000.01,0.00014297,2]
[400765393,1767822559121,10000.01,0.00014297,2]
[400765394,1767822559147,10000.01,0.00014297,2]
[400765395,1767822559174,10000.01,0.00014297,2]
[400765396,1767822559199,10000.01,0.00014297,2]
[400765397,1767822565768,-335.32,0.00013483,2]
[400765399,1767822566979,-210.22252446,0.00014297,2]
[400765400,1767822573022,-250.0,0.00014297,2]
[400765401,1767822574181,-5111.85741303,0.00014297,2]
[400765402,1767822574232,-10000.01,0.00014297,2]
[400765403,1767822574342,-10000.01,0.00014297,2]
[400765404,1767822574414,-500.0,0.00014297,2]
[400765405,1767822574484,-10000.01,0.00014297,2]
[400765406,1767822574518,-10000.01,0.00014297,2]
[400765407,1767822574615,-10000.01,0.00014297,2]
[400765408,1767822574768,-10000.01,0.00014297,2]
[400765409,1767822579605,-604.16,0.00013483,2]
[400765410,1767822579954,-8791.69,0.00014297,2]
[400765411,1767822580055,-10000.01,0.00014297,2]
[400765412,1767822580379,-181.83775549,0.00014297,2]
[400765413,1767822585265,-10000.01,0.00014297,2]
[400765414,1767822585400,-10000.01,0.00014297,2]
[400765415,1767822589091,-10000.01,0.00014297,2]
[400765416,1767822589172,-10000.01,0.00014297,2]
[400765417,1767822589256,-10000.01,0.00014297,2]
[400765418,1767822589403,-10000.01,0.00014297,2]
[400765419,1767822589485,-10000.01,0.00014297,2]
[400765420,1767822591939,-10000.01,0.00014297,2]
[400765421,1767822591994,-10000.01,0.00014297,2]
[400765422,1767822595024,-10000.01,0.00014297,2]
[400765423,1767822595058,-10000.01,0.00014297,2]
[400765424,1767822595181,-10000.01,0.00014297,2]
[400765425,1767822595216,-10000.01,0.00014297,2]
[400765426,1767822595357,-10000.01,0.00014297,2]
[400765427,1767822595474,-10000.01,0.00014297,2]
[400765428,1767822595700,-161.41992823,0.00014297,2]
[400765429,1767822603961,-1200.0,0.00014296,2]
[400765430,1767822603993,-300.0,0.00014296,2]
[400765431,1767822604351,-7000.01,0.00014297,2]